bitfinex/quotes_BTCUSD_20250215
["timestamp","ask_amount","ask_price","bid_price","bid_amount"]
[1739652176838,0.63579378,97472.0,97471.0,0.000342]
[1739652177043,0.62179378,97472.0,97471.0,0.000342]
[1739652177562,0.63579378,97472.0,97471.0,0.000342]
[1739652178852,0.15391,97459.0,97458.0,0.000142]
[1739652179062,0.25641365,97459.0,97458.0,0.000142]
[1739652180311,0.26406258,97459.0,97458.0,0.000142]
[1739652180516,0.27806258,97459.0,97458.0,0.000142]
[1739652180882,0.32779652,97459.0,97458.0,0.000142]
[1739652181449,0.35267152,97459.0,97458.0,0.000142]
[1739652182502,0.32204401,97459.0,97458.0,0.000142]
[1739652182678,0.64364401,97459.0,97458.0,0.000142]
[1739652183441,0.49717378,97459.0,97458.0,0.000142]
[1739652183645,0.48973401,97459.0,97458.0,0.082742]
[1739652184362,0.48973401,97459.0,97458.0,0.236654]
[1739652184709,0.48273401,97459.0,97458.0,0.082742]
[1739652185004,0.47442016,97459.0,97458.0,0.082742]
[1739652185376,0.46742016,97459.0,97458.0,0.082742]
[1739652185587,0.46742016,97459.0,97458.0,0.236654]
[1739652185760,0.47442016,97459.0,97458.0,0.236654]
[1739652186368,0.48669782,97459.0,97458.0,0.236654]
[1739652187193,0.38419417,97459.0,97458.0,0.236654]
[1739652188342,0.37191651,97459.0,97458.0,0.236654]
[1739652188514,0.05031651,97459.0,97458.0,0.236654]
[1739652190802,0.03121008,97459.0,97458.0,0.236654]
[1739652192506,0.02164893,97459.0,97458.0,0.236654]
[1739652194097,0.014,97459.0,97458.0,0.236654]
[1739652197846,0.35565342,97459.0,97458.0,0.000142]
[1739652198049,0.27785342,97459.0,97458.0,0.000142]
[1739652198648,0.29078456,97459.0,97458.0,0.000142]
[1739652198982,0.29778456,97459.0,97458.0,0.000142]
[1739652199187,0.30736697,97459.0,97458.0,0.000142]
[1739652199458,0.30036697,97459.0,97458.0,0.000142]
[1739652199635,0.32653074,97459.0,97458.0,0.000142]
[1739652200416,0.31953074,97459.0,97458.0,0.000142]
[1739652200619,0.32653074,97459.0,97458.0,0.000142]
[1739652200862,0.31953074,97459.0,97458.0,0.000142]
[1739652201199,0.32653074,97459.0,97458.0,0.000142]
[1739652203507,0.64813074,97459.0,97458.0,0.000142]
[1739652204087,0.62886542,97459.0,97458.0,0.000142]
[1739652204292,0.63586542,97459.0,97458.0,0.000142]
[1739652204746,0.62886542,97459.0,97458.0,0.000142]
[1739652205471,0.62186542,97459.0,97458.0,0.000142]
[1739652205788,0.62886542,97459.0,97458.0,0.000142]
[1739652205966,0.63586542,97459.0,97458.0,0.000142]
[1739652207878,0.47451565,97459.0,97458.0,0.000142]
[1739652208237,0.47451565,97459.0,97458.0,0.154054]
[1739652208433,0.372012,97459.0,97458.0,0.233554]
[1739652209104,0.36242959,97459.0,97458.0,0.233554]
[1739652209474,0.34326582,97459.0,97458.0,0.154054]
[1739652210378,0.33626582,97459.0,97458.0,0.154054]
[1739652210585,0.34326582,97459.0,97458.0,0.154054]
[1739652210840,0.33626582,97459.0,97458.0,0.154054]
[1739652211246,0.33126582,97459.0,97458.0,0.154054]
[1739652211619,0.33826582,97459.0,97458.0,0.154054]
[1739652212186,0.33126582,97459.0,97458.0,0.154054]
[1739652212532,0.3236,97459.0,97458.0,0.154054]
[1739652214863,0.33318842,97459.0,97458.0,0.154054]
[1739652215270,0.35236472,97459.0,97458.0,0.154054]
[1739652215470,0.36003524,97459.0,97458.0,0.154054]
[1739652216443,0.34085894,97459.0,97458.0,0.154054]
[1739652216654,0.33127052,97459.0,97458.0,0.154054]
[1739652217276,0.3236,97459.0,97458.0,0.154054]
[1739652225023,0.3216,97459.0,97458.0,0.154054]
[1739652225233,0.3216,97459.0,97458.0,0.155054]
[1739652227280,0.3216,97466.0,97460.0,0.153907]
[1739652227464,0.10250365,97465.0,97460.0,0.153907]
[1739652228028,0.153907,97461.0,97458.0,0.001142]
[1739652228233,0.10250365,97460.0,97458.0,0.000142]
[1739652228643,0.00958276,97459.0,97458.0,0.000142]
[1739652228804,0.13125192,97459.0,97458.0,0.000142]
[1739652229209,0.28516192,97459.0,97458.0,0.000142]
[1739652229417,0.13125192,97459.0,97458.0,0.000142]
[1739652229666,0.13891813,97459.0,97458.0,0.000142]
[1739652230412,0.13891813,97459.0,97458.0,0.001142]
[1739652231017,0.13891813,97459.0,97458.0,0.000142]
[1739652231222,0.13891813,97459.0,97458.0,0.001142]
[1739652231503,0.13991813,97459.0,97458.0,0.001142]
[1739652236150,0.29382813,97459.0,97458.0,0.001142]
[1739652236864,0.13991813,97459.0,97458.0,0.001142]
[1739652237250,0.13891813,97459.0,97458.0,0.001142]
[1739652237579,0.13991813,97459.0,97458.0,0.000142]
[1739652242650,0.29382813,97459.0,97458.0,0.000142]
[1739652243351,0.13991813,97459.0,97458.0,0.000142]
[1739652248722,0.12075262,97459.0,97458.0,0.000142]
[1739652248884,0.13993709,97459.0,97458.0,0.000142]
[1739652257624,0.03743344,97459.0,97458.0,0.154054]
[1739652258880,0.03643344,97459.0,97458.0,0.154054]
[1739652259086,0.03643344,97459.0,97458.0,0.155054]
[1739652259287,0.03643344,97459.0,97458.0,0.156054]
[1739652259493,0.03643344,97459.0,97458.0,0.155054]
[1739652259687,0.03643344,97459.0,97458.0,0.156054]
[1739652260047,0.01724897,97459.0,97458.0,0.156054]
[1739652262193,0.3216,97466.0,97458.0,0.002142]
[1739652262340,0.3216,97466.0,97465.0,0.153901]
[1739652262570,0.3216,97469.0,97468.0,0.153896]
[1739652263748,0.33886921,97469.0,97468.0,0.153896]
[1739652264123,0.33986921,97469.0,97468.0,0.153896]
[1739652264321,0.34286921,97469.0,97468.0,0.153896]
[1739652264771,0.33327521,97469.0,97468.0,0.153896]
[1739652265399,0.3256,97469.0,97468.0,0.153896]
[1739652265944,0.004,97469.0,97468.0,0.153896]
[1739652281376,0.004,97469.0,97468.0,0.154038]
[1739652289871,0.004,97469.0,97468.0,0.14783678]
[1739652297635,0.10650365,97469.0,97468.0,0.000142]
[1739652299653,0.11418175,97469.0,97468.0,0.000142]
[1739652301403,0.26807675,97469.0,97468.0,0.000142]
[1739652301583,0.11418175,97469.0,97468.0,0.000142]
[1739652301786,0.26807675,97469.0,97468.0,0.000142]
[1739652302177,0.11418175,97469.0,97468.0,0.000142]
[1739652302693,0.26807675,97469.0,97468.0,0.000142]
[1739652303536,0.11418175,97469.0,97468.0,0.000142]
[1739652303951,0.12377438,97469.0,97468.0,0.000142]
[1739652304151,0.12373438,97469.0,97468.0,0.000142]
[1739652305491,0.12401838,97469.0,97468.0,0.000142]
[1739652306343,0.27791338,97469.0,97468.0,0.000142]
[1739652307003,0.26832075,97469.0,97468.0,0.000142]
[1739652308815,0.27576052,97469.0,97468.0,0.000142]
[1739652309029,0.35876052,97469.0,97468.0,0.000142]
[1739652309668,0.37103315,97469.0,97468.0,0.000142]
[1739652309896,0.38061856,97469.0,97468.0,0.000142]
[1739652311538,1.40661856,97469.0,97468.0,0.000142]
[1739652312611,1.42578239,97469.0,97468.0,0.000142]
[1739652313448,1.74738239,97469.0,97468.0,0.000142]
[1739652314291,1.66438239,97469.0,97468.0,0.000142]
[1739652315329,1.65210976,97469.0,97468.0,0.000142]
[1739652316318,1.64466999,97469.0,97468.0,0.000142]
[1739652316743,1.65210976,97469.0,97468.0,0.000142]
[1739652317962,1.64466999,97469.0,97468.0,0.000142]
[1739652318324,1.65210976,97469.0,97468.0,0.000142]
[1739652322142,1.49077499,97469.0,97468.0,0.000142]
[1739652324126,1.49077499,97469.0,97468.0,0.154038]
[1739652325116,1.38827134,97469.0,97468.0,0.154038]
[1739652326379,1.36910751,97469.0,97468.0,0.154038]
[1739652330122,1.3595221,97469.0,97468.0,0.154038]
[1739652330481,1.351844,97469.0,97468.0,0.154038]
[1739652331282,1.030244,97469.0,97468.0,0.154038]
[1739652340160,1.28664265,97469.0,97468.0,0.000142]
[1739652340368,1.13274765,97469.0,97468.0,0.000142]
[1739652340565,1.13274765,97469.0,97468.0,0.154038]
[1739652340792,1.13274765,97469.0,97468.0,0.000142]
[1739652342002,1.14041443,97469.0,97468.0,0.000142]
[1739652343045,1.46201443,97469.0,97468.0,0.000142]
[1739652343255,1.46201443,97469.0,97468.0,0.154038]
[1739652344039,1.45434765,97469.0,97468.0,0.154038]
[1739652345002,1.351844,97469.0,97468.0,0.154038]
[1739652346402,1.030244,97469.0,97468.0,0.154038]
[1739652347654,1.030244,97469.0,97468.0,0.16446519]
[1739652349628,1.030244,97469.0,97468.0,0.154038]
[1739652357956,1.030244,97469.0,97468.0,0.000142]
[1739652358434,1.13274765,97469.0,97468.0,0.000142]
[1739652358662,1.28664265,97469.0,97468.0,0.000142]
[1739652359748,1.29623539,97469.0,97468.0,0.000142]
[1739652359957,1.30367516,97469.0,97468.0,0.000142]
[1739652360172,1.33053467,97469.0,97468.0,0.000142]
[1739652362043,1.34281226,97469.0,97468.0,0.000142]
[1739652364277,1.66441226,97469.0,97468.0,0.000142]
[1739652364818,1.66437226,97469.0,97468.0,0.000142]
[1739652371226,1.65209467,97469.0,97468.0,0.000142]
[1739652376148,1.63290931,97469.0,97468.0,0.000142]
[1739652377015,1.47901431,97469.0,97468.0,0.000142]
[1739652377224,1.47901431,97469.0,97468.0,0.154038]
[1739652378308,1.47157454,97469.0,97468.0,0.154038]
[1739652379149,1.4619818,97469.0,97468.0,0.154038]
[1739652379971,1.45430765,97469.0,97468.0,0.154038]
[1739652380555,1.351804,97469.0,97468.0,0.154038]
[1739652381924,1.030204,97469.0,97468.0,0.154038]
[1739652384347,1.030204,97469.0,97468.0,0.000142]
[1739652385098,1.030204,97469.0,97468.0,0.154038]
[1739652392669,1.03786683,97469.0,97468.0,0.236038]
[1739652393489,1.03694683,97469.0,97468.0,0.285238]
[1739652393702,1.03694683,97469.0,97468.0,0.286238]
[1739652393885,1.030284,97469.0,97468.0,0.286238]
[1739652394315,1.029284,97469.0,97468.0,0.285238]
[1739652394527,1.027284,97469.0,97468.0,0.286238]
[1739652394963,1.027284,97469.0,97468.0,0.287238]
[1739652395791,1.027284,97469.0,97468.0,0.286238]
[1739652396006,1.027284,97469.0,97468.0,0.287238]
[1739652401372,1.027284,97469.0,97468.0,0.282238]
[1739652404765,1.027284,97469.0,97468.0,0.200238]
[1739652408049,1.027284,97469.0,97468.0,0.20038]
[1739652413910,1.027284,97469.0,97468.0,0.28208]
[1739652414953,1.027284,97469.0,97468.0,0.28108]
[1739652415164,1.027284,97469.0,97468.0,0.28208]
[1739652415345,1.026284,97469.0,97468.0,0.28108]
[1739652415796,1.027284,97469.0,97468.0,0.28208]
[1739652424342,1.027284,97469.0,97468.0,0.28208]
[1739652425906,1.027244,97469.0,97468.0,0.28208]
[1739652427013,1.027244,97469.0,97468.0,0.20038]
[1739652428256,1.027244,97469.0,97468.0,0.15118]
[1739652429049,1.026244,97469.0,97468.0,0.14918]
[1739652429283,1.027244,97469.0,97468.0,0.15018]
[1739652430473,1.026244,97469.0,97468.0,0.14918]
[1739652430878,1.026244,97469.0,97468.0,0.15118]
[1739652431082,1.026244,97469.0,97468.0,0.15018]
[1739652431920,1.026244,97469.0,97468.0,0.15118]
[1739652432129,1.026244,97469.0,97468.0,0.15018]
[1739652432341,1.026244,97469.0,97468.0,0.14918]
[1739652432549,1.026244,97469.0,97468.0,0.15118]
[1739652439840,1.026244,97469.0,97468.0,0.15018]
[1739652440249,1.026244,97469.0,97468.0,0.15118]
[1739652440459,1.026244,97469.0,97468.0,0.14918]
[1739652440866,1.026244,97469.0,97468.0,0.15118]
[1739652441146,1.026244,97469.0,97468.0,0.15018]
[1739652441579,1.026244,97469.0,97468.0,0.15118]
[1739652446829,1.026244,97469.0,97468.0,0.15018]
[1739652447418,1.026244,97469.0,97468.0,0.15118]
[1739652450992,1.026244,97469.0,97468.0,0.156038]
[1739652451404,1.026244,97469.0,97468.0,0.155038]
[1739652452711,1.026244,97469.0,97468.0,0.154038]
[1739652452923,1.026244,97469.0,97468.0,0.155038]
[1739652453518,1.026244,97469.0,97468.0,0.156038]
[1739652453716,1.026244,97469.0,97468.0,0.155038]
[1739652453933,1.026244,97469.0,97468.0,0.156038]
[1739652455918,1.026244,97469.0,97468.0,0.155038]
[1739652456104,1.026244,97469.0,97468.0,0.154038]
[1739652456322,1.026244,97469.0,97468.0,0.155038]
[1739652456446,1.026244,97469.0,97468.0,0.156038]
[1739652471623,1.026244,97469.0,97468.0,3.188378]
[1739652472002,1.026244,97469.0,97468.0,3.31644188]
[1739652472810,1.026244,97469.0,97468.0,0.41070188]
[1739652473120,1.026244,97469.0,97468.0,3.31544188]
[1739652473383,1.026244,97469.0,97468.0,3.31444188]
[1739652473593,1.027244,97469.0,97468.0,3.31544188]
[1739652475297,1.028244,97469.0,97468.0,3.31944188]
[1739652480790,1.028244,97469.0,97468.0,0.402238]
[1739652481437,1.028244,97469.0,97468.0,0.267938]
[1739652481639,1.027244,97469.0,97468.0,0.263938]
[1739652482045,1.028244,97469.0,97468.0,0.267938]
[1739652482266,1.028244,97469.0,97468.0,0.159038]
[1739652482439,1.026244,97469.0,97468.0,0.154038]
[1739652482645,1.027244,97469.0,97468.0,0.156038]
[1739652482799,1.028244,97469.0,97468.0,0.160038]
[1739652483007,1.027244,97469.0,97468.0,0.158038]
[1739652483185,1.028244,97469.0,97468.0,0.160038]
[1739652485256,1.028244,97469.0,97468.0,0.006142]
[1739652485458,1.027244,97469.0,97468.0,0.002142]
[1739652485663,1.263939,97469.0,97468.0,0.004142]
[1739652485872,1.110044,97469.0,97468.0,0.006142]
[1739652486086,1.111044,97469.0,97468.0,0.006142]
[1739652486294,1.262939,97469.0,97468.0,0.000142]
[1739652486493,1.262939,97469.0,97468.0,0.002142]
[1739652486699,1.262899,97469.0,97468.0,0.002142]
[1739652486905,1.262899,97469.0,97468.0,0.000142]
[1739652487118,1.263899,97469.0,97468.0,0.000142]
[1739652487351,1.27133877,97469.0,97468.0,0.000142]
[1739652487546,1.27133877,97469.0,97468.0,0.004142]
[1739652488100,1.27133877,97469.0,97468.0,0.000142]
[1739652488304,1.27133877,97469.0,97468.0,0.001142]
[1739652489288,1.39299816,97469.0,97468.0,0.001142]
[1739652490909,1.39299816,97469.0,97468.0,0.000142]
[1739652491154,1.40457032,97469.0,97468.0,0.000142]
[1739652491554,1.41222798,97469.0,97468.0,0.000142]
[1739652491803,1.40922798,97469.0,97468.0,0.000142]
[1739652492209,1.41222798,97469.0,97468.0,0.000142]
[1739652492393,1.40922798,97469.0,97468.0,0.000142]
[1739652492642,1.41522798,97469.0,97468.0,0.000142]
[1739652493888,1.40565582,97469.0,97468.0,0.000142]
[1739652494298,1.39799816,97469.0,97468.0,0.000142]
[1739652494920,1.71959816,97469.0,97468.0,0.000142]
[1739652495072,1.71659816,97469.0,97468.0,0.000142]
[1739652495279,1.69744242,97469.0,97468.0,0.000142]
[1739652495889,1.70044242,97469.0,97468.0,0.000142]
[1739652502766,1.54654742,97469.0,97468.0,0.000142]
[1739652503191,1.70044242,97469.0,97468.0,0.000142]
[1739652503554,1.69744242,97469.0,97468.0,0.000142]
[1739652503808,1.69444242,97469.0,97468.0,0.000142]
[1739652504772,1.69544242,97469.0,97468.0,0.000142]
[1739652505144,1.69444242,97469.0,97468.0,0.000142]
[1739652506466,1.69644242,97469.0,97468.0,0.000142]
[1739652506996,1.69744242,97469.0,97468.0,0.000142]
[1739652507385,1.69644242,97469.0,97468.0,0.000142]
[1739652507763,1.69744242,97469.0,97468.0,0.000142]
[1739652509173,1.71658508,97469.0,97468.0,0.000142]
[1739652509920,1.72616193,97469.0,97468.0,0.000142]
[1739652510360,0.153898,97467.0,97461.0,0.153907]
[1739652510565,0.10250365,97466.0,97461.0,0.153907]
[1739652511161,0.25640265,97466.0,97460.0,0.153908]
[1739652511366,0.00128258,97465.0,97457.0,0.205218]
[1739652511577,0.00743977,97461.0,97450.0,0.205233]
[1739652511777,0.00743977,97461.0,97459.0,0.15391]
[1739652512361,0.15391,97460.0,97453.0,0.153918]
[1739652512555,0.00743977,97458.0,97449.0,0.0009813]
[1739652512749,0.00743977,97458.0,97454.0,0.153917]
[1739652513210,0.00743977,97458.0,97448.0,0.205237]
[1739652513409,0.00743977,97458.0,97450.0,0.001]
[1739652513657,0.00743977,97458.0,97455.0,0.153915]
[1739652513867,0.00743977,97458.0,97456.0,0.153915]
[1739652514077,0.00743977,97458.0,97457.0,0.153914]
[1739652515595,0.00743977,97458.0,97457.0,0.154914]
[1739652516538,0.00743977,97458.0,97457.0,0.156914]
[1739652516739,0.02662693,97458.0,97457.0,0.156914]
[1739652516943,0.02662693,97458.0,97457.0,0.003]
[1739652518317,0.00743977,97458.0,97457.0,0.003]
[1739652518519,0.00743977,97458.0,97457.0,0.211514]
[1739652518747,0.00743977,97458.0,97457.0,0.156914]
[1739652519717,0.00743977,97458.0,97457.0,0.003]
[1739652519923,0.34465542,97458.0,97457.0,0.0576]
[1739652520149,0.34465542,97458.0,97457.0,0.003]
[1739652520527,0.36384127,97458.0,97457.0,0.003]
[1739652520726,0.36384127,97458.0,97443.0,0.000142]
[1739652520995,0.153925,97450.0,97443.0,0.000142]
[1739652521249,0.00743977,97446.0,97443.0,0.000142]
[1739652521484,0.16137377,97444.0,97443.0,0.000142]
[1739652521659,0.26387742,97444.0,97443.0,0.000142]
[1739652521870,0.5793867,97446.0,97443.0,0.000142]
[1739652522079,0.153934,97444.0,97443.0,0.000142]
[1739652522283,0.25772057,97444.0,97443.0,0.001142]
[1739652522465,0.25643765,97444.0,97443.0,0.000142]
[1739652522860,0.25943765,97444.0,97443.0,0.003142]
[1739652523299,0.25943765,97444.0,97443.0,0.000142]
[1739652523443,0.26711166,97444.0,97443.0,0.000142]
[1739652523639,0.26911166,97444.0,97443.0,0.000142]
[1739652524680,0.59071166,97444.0,97443.0,0.000142]
[1739652528469,0.43677766,97444.0,97443.0,0.000142]
[1739652528907,0.44634392,97444.0,97443.0,0.000142]
[1739652529681,0.43866991,97444.0,97443.0,0.000142]
[1739652530036,0.33616626,97444.0,97443.0,0.154078]
[1739652530443,0.3246,97444.0,97443.0,0.154078]
[1739652530619,0.3216,97456.0,97455.0,0.153917]
[1739652532263,0.3256,97456.0,97455.0,0.153917]
[1739652532669,0.3286,97456.0,97455.0,0.153917]
[1739652533086,0.27775068,97456.0,97455.0,0.153917]
[1739652534829,0.27803468,97456.0,97455.0,0.153917]
[1739652536418,0.007284,97456.0,97455.0,0.153917]
[1739652539937,0.007284,97456.0,97455.0,0.08824141]
[1739652540148,0.007284,97456.0,97453.0,0.205227]
[1739652540356,0.007284,97456.0,97455.0,0.13296874]
[1739652540786,0.007284,97456.0,97455.0,0.153917]
[1739652541235,0.004284,97456.0,97455.0,0.153917]
[1739652541635,0.006284,97456.0,97455.0,0.153917]
[1739652542091,0.004284,97456.0,97455.0,0.153917]
[1739652542474,0.007284,97456.0,97455.0,0.153917]
[1739652545389,0.007284,97456.0,97455.0,0.284617]
[1739652545794,0.004284,97456.0,97455.0,0.284617]
[1739652546242,0.005284,97456.0,97455.0,0.287617]
[1739652546986,0.001284,97456.0,97455.0,0.287617]
[1739652547162,0.001284,97456.0,97455.0,0.288617]
[1739652547363,0.000244,97456.0,97455.0,0.285617]
[1739652547770,0.001244,97456.0,97455.0,0.288617]
[1739652549261,0.000244,97456.0,97455.0,0.285617]
[1739652549555,0.000244,97456.0,97455.0,0.284617]
[1739652549763,0.000244,97456.0,97455.0,0.285617]
[1739652551142,0.001244,97456.0,97455.0,0.288617]
[1739652558441,0.000244,97456.0,97455.0,0.285617]
[1739652558662,0.000244,97456.0,97455.0,0.284617]
[1739652558890,0.001244,97456.0,97455.0,0.288617]
[1739652560093,0.000244,97456.0,97455.0,0.284617]
[1739652560297,0.001244,97456.0,97455.0,0.287617]
[1739652560537,0.001244,97456.0,97455.0,0.288617]
[1739652562220,0.001244,97456.0,97455.0,0.438617]
[1739652562747,0.001244,97456.0,97455.0,3.44686065]
[1739652564567,0.001244,97456.0,97455.0,0.54112065]
[1739652564763,0.001244,97456.0,97455.0,3.44686065]
[1739652567657,0.001244,97456.0,97455.0,3.35642065]
[1739652567993,0.001244,97456.0,97455.0,1.28032065]
[1739652568630,0.001244,97456.0,97455.0,0.41042065]
[1739652569233,0.000244,97456.0,97455.0,0.40742065]
[1739652569388,0.001244,97456.0,97455.0,0.41042065]
[1739652569936,0.001244,97456.0,97455.0,0.40942065]
[1739652570224,0.001244,97456.0,97455.0,0.41042065]
[1739652570816,0.001244,97456.0,97455.0,0.307917]
[1739652571021,0.001244,97456.0,97455.0,0.157917]
[1739652572278,0.000244,97456.0,97455.0,0.154917]
[1739652572482,0.001244,97456.0,97455.0,0.157917]
[1739652572868,0.000244,97456.0,97455.0,0.154059]
[1739652573074,0.000244,97456.0,97455.0,0.158059]
[1739652575561,0.000244,97456.0,97455.0,0.155059]
[1739652576103,0.000244,97456.0,97455.0,0.157059]
[1739652576341,0.000244,97456.0,97455.0,0.158059]
[1739652576815,0.000244,97456.0,97455.0,0.155059]
[1739652577060,0.000244,97456.0,97455.0,0.157059]
[1739652577308,0.000244,97456.0,97455.0,0.158059]
[1739652578859,0.000244,97456.0,97455.0,0.155059]
[1739652579058,0.000244,97456.0,97455.0,0.158059]
[1739652579585,0.000244,97456.0,97455.0,0.157059]
[1739652579811,0.000244,97456.0,97455.0,0.155059]
[1739652580150,0.000244,97456.0,97455.0,0.156059]
[1739652580348,0.000244,97456.0,97455.0,0.157059]
[1739652581406,0.000244,97456.0,97455.0,0.003142]
[1739652583873,0.000244,97456.0,97455.0,0.157059]
[1739652588901,0.000244,97456.0,97455.0,0.155059]
[1739652589341,0.000244,97456.0,97455.0,0.156059]
[1739652589493,0.000244,97456.0,97455.0,0.157059]
[1739652600222,0.000244,97456.0,97455.0,0.003142]
[1739652601155,0.232659,97456.0,97455.0,0.003142]
[1739652602224,0.34474303,97456.0,97455.0,0.003142]
[1739652602434,0.34474303,97456.0,97455.0,0.002142]
[1739652602647,0.39364303,97456.0,97455.0,0.002142]
[1739652603077,0.39364303,97456.0,97455.0,0.000142]
[1739652603215,0.41329944,97456.0,97455.0,0.000142]
[1739652603424,0.40629944,97456.0,97455.0,0.000142]
[1739652603664,0.41329944,97456.0,97455.0,0.000142]
[1739652603872,0.40829944,97456.0,97455.0,0.000142]
[1739652604046,0.41529944,97456.0,97455.0,0.000142]
[1739652604257,0.43443345,97456.0,97455.0,0.000142]
[1739652604928,0.70518413,97456.0,97455.0,0.000142]
[1739652608185,0.70514413,97456.0,97455.0,0.000142]
[1739652610489,0.65624413,97456.0,97455.0,0.000142]
[1739652610700,0.57774413,97456.0,97455.0,0.000142]
[1739652611121,0.32132548,97456.0,97455.0,0.000142]
[1739652611451,0.29519147,97456.0,97455.0,0.000142]
[1739652611655,0.28753506,97456.0,97455.0,0.000142]
[1739652612268,0.28053506,97456.0,97455.0,0.000142]
[1739652612493,0.28753506,97456.0,97455.0,0.000142]
[1739652612663,0.28495468,97456.0,97455.0,0.000142]
[1739652614032,0.28495468,97456.0,97455.0,0.154059]
[1739652615850,0.27095468,97456.0,97455.0,0.154059]
[1739652616040,0.27395468,97456.0,97455.0,0.154059]
[1739652616171,0.27595468,97456.0,97455.0,0.154059]
[1739652616381,0.27295468,97456.0,97455.0,0.154059]
[1739652616583,0.27395468,97456.0,97455.0,0.233459]
[1739652616795,0.003204,97456.0,97455.0,0.233459]
[1739652616997,0.005204,97456.0,97455.0,0.233459]
[1739652617419,0.000204,97456.0,97455.0,0.233459]
[1739652618816,0.005204,97456.0,97455.0,0.233459]
[1739652619368,0.005204,97456.0,97455.0,0.154059]
[1739652622041,0.003204,97456.0,97455.0,0.154059]
[1739652622238,0.000204,97456.0,97455.0,0.154059]
[1739652622438,0.002204,97456.0,97455.0,0.154059]
[1739652622652,0.005204,97456.0,97455.0,0.154059]
[1739652627870,0.005204,97456.0,97455.0,0.000142]
[1739652628086,0.159119,97456.0,97455.0,0.000142]
[1739652628338,0.005204,97456.0,97455.0,0.000142]
[1739652629141,0.16040172,97456.0,97455.0,0.000142]
[1739652630383,0.00648672,97456.0,97455.0,0.000142]
[1739652630582,0.005204,97456.0,97455.0,0.000142]
[1739652630935,0.02433163,97456.0,97455.0,0.000142]
[1739652631377,0.0338958,97456.0,97455.0,0.000142]
[1739652632866,0.1878108,97456.0,97455.0,0.000142]
[1739652634264,0.0338958,97456.0,97455.0,0.000142]
[1739652637178,0.1878108,97456.0,97455.0,0.000142]
[1739652637395,0.29031445,97456.0,97455.0,0.000142]
[1739652637603,0.36881445,97456.0,97455.0,0.000142]
[1739652638157,0.39943143,97456.0,97455.0,0.000142]
[1739652639671,0.42239328,97456.0,97455.0,0.000142]
[1739652642437,0.34389328,97456.0,97455.0,0.000142]
[1739652643077,0.18997828,97456.0,97455.0,0.000142]
[1739652643690,0.1746704,97456.0,97455.0,0.000142]
[1739652644021,0.07216675,97456.0,97455.0,0.000142]
[1739652644628,0.04154977,97456.0,97455.0,0.000142]
[1739652645858,0.29925115,97456.0,97455.0,0.000142]
[1739652646051,0.27118682,97456.0,97455.0,0.000142]
[1739652648853,0.28649247,97456.0,97455.0,0.000142]
[1739652649049,0.30562434,97456.0,97455.0,0.000142]
[1739652649282,0.31327708,97456.0,97455.0,0.000142]
[1739652650107,0.30562434,97456.0,97455.0,0.000142]
[1739652650727,0.31327751,97456.0,97455.0,0.000142]
[1739652650938,0.15936251,97456.0,97455.0,0.000142]
[1739652651979,0.05685886,97456.0,97455.0,0.000142]
[1739652652192,0.05685886,97456.0,97455.0,0.154059]
[1739652652397,0.05685886,97456.0,97455.0,0.000142]
[1739652652791,0.04155321,97456.0,97455.0,0.000142]
[1739652653670,0.03390004,97456.0,97455.0,0.154059]
[1739652654724,0.03390004,97456.0,97455.0,0.000142]
[1739652657178,0.03518275,97456.0,97455.0,0.000142]
[1739652657400,0.04284074,97456.0,97455.0,0.000142]
[1739652658540,0.04155803,97456.0,97455.0,0.000142]
[1739652660972,0.04155803,97456.0,97455.0,0.154059]
[1739652662398,0.02242616,97456.0,97455.0,0.154059]
[1739652662608,0.01476817,97456.0,97455.0,0.203359]
[1739652663444,0.005204,97456.0,97455.0,0.203359]
[1739652664108,0.005204,97456.0,97455.0,0.000142]
[1739652664317,0.005204,97456.0,97455.0,0.154059]
[1739652664724,0.005204,97456.0,97455.0,0.000142]
[1739652666490,0.159119,97456.0,97455.0,0.000142]
[1739652666719,0.16040176,97456.0,97455.0,0.000142]
[1739652668146,0.17954122,97456.0,97455.0,0.000142]
[1739652668352,0.19676653,97456.0,97455.0,0.000142]
[1739652668972,0.19672653,97456.0,97455.0,0.000142]
[1739652671940,0.19672653,97456.0,97455.0,0.000142]
[1739652675785,0.29923018,97456.0,97455.0,0.000142]
[1739652676139,0.29794742,97456.0,97455.0,0.000142]
[1739652679268,0.5686981,97456.0,97455.0,0.000142]
[1739652684306,0.54955864,97456.0,97455.0,0.000142]
[1739652685467,0.54655864,97456.0,97455.0,0.000142]
[1739652685668,0.55355864,97456.0,97455.0,0.000142]
[1739652686068,0.55155864,97456.0,97455.0,0.000142]
[1739652686269,0.55855864,97456.0,97455.0,0.000142]
[1739652686611,0.55155864,97456.0,97455.0,0.000142]
[1739652687139,0.55855864,97456.0,97455.0,0.000142]
[1739652688075,0.55155864,97456.0,97455.0,0.000142]
[1739652688277,0.54455864,97456.0,97455.0,0.000142]
[1739652688484,0.55155864,97456.0,97455.0,0.000142]
[1739652688885,0.54455864,97456.0,97455.0,0.000142]
[1739652689152,0.55155864,97456.0,97455.0,0.000142]
[1739652689456,0.55855864,97456.0,97455.0,0.000142]
[1739652689580,0.57770952,97456.0,97455.0,0.000142]
[1739652689938,0.57070952,97456.0,97455.0,0.000142]
[1739652690139,0.57770952,97456.0,97455.0,0.000142]
[1739652699495,0.58997947,97456.0,97455.0,0.000142]
[1739652701434,0.58297947,97456.0,97455.0,0.000142]
[1739652701812,0.58997947,97456.0,97455.0,0.000142]
[1739652703041,0.57082859,97456.0,97455.0,0.000142]
[1739652707573,0.31440994,97456.0,97455.0,0.154059]
[1739652707773,0.31440994,97456.0,97455.0,0.236059]
[1739652708803,0.04365926,97456.0,97455.0,0.236059]
[1739652709199,0.04365926,97456.0,97455.0,0.000142]
[1739652709376,0.04494191,97456.0,97455.0,0.154059]
[1739652709578,0.02501625,97456.0,97455.0,0.154059]
[1739652709915,0.014164,97456.0,97455.0,0.154059]